bitfinex-derivatives/quotes_BTCF0:USTF0_20241223
["timestamp","ask_amount","ask_price","bid_price","bid_amount"]
[1734974663565,0.05346,93645.0,93644.0,0.053459]
[1734974664261,0.24533911,93651.0,93647.0,0.053458]
[1734974664457,0.19088311,93651.0,93637.0,0.37207862]
[1734974664662,0.053461,93643.0,93637.0,0.37207862]
[1734974664964,0.053461,93643.0,93640.0,0.053462]
[1734974665159,0.001,93645.0,93644.0,0.05346]
[1734974666563,0.18988311,93651.0,93650.0,0.053457]
[1734974666757,0.18988311,93651.0,93650.0,0.414257]
[1734974668060,0.07007354,93651.0,93650.0,0.414257]
[1734974669062,0.07107354,93651.0,93650.0,0.414257]
[1734974669572,0.07107354,93651.0,93650.0,0.646257]
[1734974670965,0.07107354,93651.0,93650.0,0.6569057]
[1734974671165,5.4e-07,93651.0,93650.0,0.9569057]
[1734974671358,0.15953162,93675.0,93650.0,0.9569057]
[1734974671359,0.15953162,93675.0,93674.0,0.053443]
[1734974671560,0.15953162,93675.0,93674.0,0.414243]
[1734974671964,0.15637416,93683.0,93682.0,0.053438]
[1734974672161,0.15089416,93686.0,93685.0,0.053437]
[1734974673363,0.15489416,93686.0,93685.0,0.053437]
[1734974673566,0.004,93686.0,93685.0,0.053437]
[1734974673765,0.004,93686.0,93674.0,0.36232]
[1734974673766,0.3738,93686.0,93674.0,0.3608]
[1734974673971,0.13169682,93684.0,93674.0,0.3608]
[1734974674168,0.053438,93682.0,93679.0,0.05344]
[1734974674376,0.053441,93677.0,93675.0,0.053442]
[1734974674870,0.1138,93683.0,93674.0,0.3608]
[1734974675367,0.05344,93681.0,93680.0,0.053438]
[1734974676165,0.053441,93677.0,93676.0,0.053442]
[1734974676369,0.006,93682.0,93680.0,0.053439]
[1734974676670,0.169238,93683.0,93682.0,0.053438]
[1734974676974,0.002,93683.0,93682.0,0.414238]
[1734974677168,0.1063,93697.0,93696.0,0.05343]
[1734974677371,0.1063,93697.0,93696.0,0.41423]
[1734974677872,0.1,93700.0,93699.0,0.053429]
[1734974678577,0.1,93700.0,93699.0,0.06398938]
[1734974678578,1e-06,93700.0,93699.0,0.06398938]
[1734974678772,1e-06,93700.0,93699.0,0.36398938]
[1734974679169,1e-06,93700.0,93699.0,0.06398938]
[1734974679676,0.003001,93700.0,93699.0,0.06398938]
[1734974679975,0.003001,93700.0,93699.0,0.06798938]
[1734974680270,1e-06,93700.0,93699.0,0.06798938]
[1734974680471,1e-06,93700.0,93699.0,0.059429]
[1734974680666,0.053429,93700.0,93699.0,0.006]
[1734974681977,1e-06,93700.0,93699.0,0.006]
[1734974682671,0.002001,93700.0,93698.0,0.053429]
[1734974683177,1e-06,93700.0,93698.0,0.053429]
[1734974683380,1e-06,93700.0,93699.0,0.002]
[1734974683772,1e-06,93700.0,93698.0,0.054429]
[1734974684377,1e-06,93700.0,93699.0,0.001]
[1734974685168,1e-06,93700.0,93684.0,0.01017849]
[1734974685475,1e-06,93700.0,93699.0,0.002]
[1734974686080,1e-06,93700.0,93698.0,0.001]
[1734974686486,1e-06,93700.0,93695.0,0.053431]
[1734974686681,0.001001,93700.0,93695.0,0.053431]
[1734974687368,0.001001,93700.0,93680.0,0.01194555]
[1734974687575,0.053439,93681.0,93680.0,0.00160112]
[1734974687778,0.053442,93676.0,93675.0,0.3608]
[1734974688079,0.3608,93683.0,93666.0,0.3608]
[1734974688080,0.1107,93680.0,93666.0,0.3608]
[1734974688287,0.1127,93675.0,93666.0,0.3608]
[1734974688581,0.1127,93675.0,93665.0,0.053447]
[1734974688582,0.053449,93663.0,93652.0,0.053455]
[1734974688777,0.053449,93663.0,93650.0,0.25254881]
[1734974688974,0.053449,93663.0,93655.0,0.053453]
[1734974689175,0.3608,93664.0,93650.0,0.25254881]
[1734974689480,0.053453,93657.0,93650.0,0.25254881]
[1734974689679,0.053453,93657.0,93656.0,0.1932534]
[1734974689887,0.053453,93657.0,93656.0,0.004]
[1734974690380,0.053453,93657.0,93640.0,0.1953467]
[1734974690573,0.3608,93655.0,93641.0,0.053461]
[1734974690974,0.3608,93655.0,93644.0,0.05346]
[1734974691178,0.3608,93655.0,93640.0,0.1418847]
[1734974691179,0.3608,93655.0,93652.0,0.053455]
[1734974691374,0.3608,93655.0,93654.0,0.053454]
[1734974692176,0.3608,93655.0,93643.0,0.3608]
[1734974692382,0.3608,93655.0,93640.0,0.1418847]
[1734974692383,0.053455,93652.0,93640.0,0.053462]
[1734974692881,0.053455,93652.0,93645.0,0.01061716]
[1734974693282,0.053455,93652.0,93651.0,0.00260168]
[1734974693483,0.3608,93655.0,93651.0,0.00260168]
[1734974693678,0.3608,93655.0,93653.0,0.053455]
[1734974694572,0.3618,93655.0,93653.0,0.053455]
[1734974694973,0.001,93655.0,93653.0,0.053455]
[1734974696085,0.167549,93664.0,93651.0,0.36240168]
[1734974696281,0.167549,93664.0,93660.0,0.053451]
[1734974696788,0.3608,93668.0,93665.0,0.053448]
[1734974696984,0.3608,93668.0,93663.0,0.053449]
[1734974697170,0.001,93664.0,93663.0,0.053449]
[1734974698781,0.1097,93679.0,93660.0,0.002]
[1734974698993,0.053437,93685.0,93680.0,0.053439]
[1734974699176,0.053438,93683.0,93678.0,0.053441]
[1734974699373,0.3608,93685.0,93678.0,0.053441]
[1734974699591,0.05344,93680.0,93678.0,0.053441]
[1734974699888,0.3608,93685.0,93669.0,0.01032607]
[1734974700197,0.053445,93671.0,93667.0,0.053447]
[1734974700370,0.3608,93677.0,93658.0,0.3608]
[1734974700371,0.053442,93676.0,93658.0,0.3608]
[1734974700577,0.3608,93669.0,93650.0,0.3608]
[1734974700776,0.3608,93669.0,93661.0,0.05345]
[1734974700981,0.053447,93667.0,93661.0,0.05345]
[1734974701182,0.1087,93670.0,93660.0,0.3608]
[1734974701379,0.414241,93678.0,93677.0,0.053441]
[1734974701380,0.3608,93678.0,93677.0,0.053441]
[1734974701577,0.00660205,93682.0,93681.0,0.053439]
[1734974702087,0.00160205,93682.0,93681.0,0.053439]
[1734974702283,0.00260205,93682.0,93681.0,0.053439]
[1734974702589,0.19120063,93690.0,93689.0,0.053434]
[1734974702789,1e-06,93700.0,93699.0,0.053429]
[1734974703786,1e-06,93700.0,93681.0,0.002]
[1734974703989,0.3608,93699.0,93688.0,0.053435]
[1734974704393,0.053432,93693.0,93690.0,0.053434]
[1734974704692,0.3608,93699.0,93688.0,0.053435]
[1734974704883,0.053432,93694.0,93688.0,0.053435]
[1734974705286,0.01032161,93699.0,93682.0,0.24259439]
[1734974705585,1e-06,93700.0,93699.0,0.053429]
[1734974706580,0.1056,93726.0,93697.0,0.3608]
[1734974706581,0.1056,93726.0,93725.0,0.053414]
[1734974706878,0.053408,93735.0,93733.0,0.053409]
[1734974707187,0.053408,93735.0,93716.0,0.3608]
[1734974707188,0.1048,93739.0,93737.0,0.053406]
[1734974707489,0.1075,93744.0,93737.0,0.053406]
[1734974707681,0.053404,93743.0,93738.0,0.053406]
[1734974707887,0.053404,93743.0,93739.0,0.053406]
[1734974708084,0.053404,93743.0,93738.0,0.053406]
[1734974708388,0.053406,93739.0,93724.0,0.3608]
[1734974708692,0.053406,93739.0,93737.0,0.053407]
[1734974708884,0.053407,93737.0,93730.0,0.053411]
[1734974709085,0.053405,93740.0,93739.0,0.002]
[1734974709392,0.053414,93726.0,93724.0,0.3608]
[1734974709583,0.053415,93723.0,93716.0,0.053418]
[1734974709780,0.1099,93725.0,93719.0,0.053417]
[1734974710089,0.3608,93750.0,93738.0,0.053406]
[1734974710288,0.001,93740.0,93739.0,0.055406]
[1734974710488,0.001,93740.0,93739.0,0.060406]
[1734974710992,0.001,93740.0,93733.0,0.347206]
[1734974711292,0.001,93740.0,93739.0,0.053406]
[1734974712181,0.3608,93771.0,93738.0,0.004]
[1734974712382,0.053406,93740.0,93738.0,0.004]
[1734974712586,0.3608,93755.0,93738.0,0.004]
[1734974712787,0.007,93740.0,93734.0,0.053408]
[1734974713097,0.007,93740.0,93739.0,0.005]
[1734974713390,0.053405,93741.0,93739.0,0.005]
[1734974713584,0.053405,93741.0,93736.0,0.053407]
[1734974713787,0.053405,93741.0,93738.0,0.002]
[1734974713988,0.005,93740.0,93738.0,0.002]
[1734974714378,0.005,93740.0,93736.0,0.053407]
[1734974714985,0.005,93740.0,93737.0,0.053407]
[1734974715200,0.005,93740.0,93738.0,0.053406]
[1734974715592,0.012,93741.0,93740.0,0.053405]
[1734974716294,0.004,93740.0,93737.0,0.001]
[1734974716483,0.004,93740.0,93738.0,0.053406]
[1734974717485,0.009,93741.0,93732.0,0.3608]
[1734974717486,0.009,93741.0,93740.0,0.053405]
[1734974717694,0.013,93741.0,93740.0,0.053405]
[1734974718483,0.004,93741.0,93740.0,0.053405]
[1734974719104,0.004,93741.0,93740.0,0.414205]
[1734974719588,0.053402,93746.0,93741.0,0.053404]
[1734974719786,0.009,93741.0,93740.0,0.415205]
[1734974720293,0.009,93741.0,93740.0,0.3618]
[1734974720593,0.013,93741.0,93740.0,0.001]
[1734974720800,0.013,93741.0,93721.0,0.3608]
[1734974720801,0.013,93741.0,93729.0,0.01036271]
[1734974721098,0.053413,93727.0,93725.0,0.285413]
[1734974721290,0.3608,93733.0,93715.0,0.01071816]
[1734974721493,0.3608,93725.0,93708.0,0.053423]
[1734974721798,0.3608,93717.0,93700.0,0.0016007]
[1734974721998,0.053421,93712.0,93705.0,0.053425]
[1734974722197,0.053426,93703.0,93700.0,0.0016007]
[1734974722385,0.3608,93710.0,93700.0,0.0016007]
[1734974722386,0.053422,93710.0,93700.0,0.0016007]
[1734974722583,0.3608,93718.0,93700.0,0.13329752]
[1734974722800,0.05341,93732.0,93715.0,0.3608]
[1734974723300,0.1132,93741.0,93721.0,0.053416]
[1734974723301,0.053411,93730.0,93721.0,0.053416]
[1734974723493,0.053416,93722.0,93715.0,0.3608]
[1734974723693,0.053416,93722.0,93715.0,0.414219]
[1734974723894,0.3608,93724.0,93715.0,0.3608]
[1734974724095,0.3608,93716.0,93705.0,0.006]
[1734974724291,0.3608,93708.0,93705.0,0.006]
[1734974724787,0.053424,93707.0,93700.0,0.0136007]
[1734974724994,0.3608,93708.0,93703.0,0.053426]
[1734974725297,0.3608,93708.0,93700.0,0.0136007]
[1734974725497,0.414224,93707.0,93700.0,0.004]
[1734974725796,0.414224,93707.0,93683.0,0.3608]
[1734974725797,0.053436,93687.0,93683.0,0.3608]
[1734974726099,0.6608,93708.0,93683.0,0.3608]
[1734974726100,0.003,93708.0,93686.0,0.3608]
[1734974726307,0.003,93708.0,93683.0,0.3]
[1734974726308,0.003,93708.0,93707.0,0.414224]
[1734974726692,0.19029064,93712.0,93707.0,0.3608]
[1734974726999,0.19029064,93712.0,93709.0,0.053423]
[1734974727200,0.19029064,93712.0,93707.0,0.3608]
[1734974727700,0.3608,93727.0,93707.0,0.3608]
[1734974727701,0.3608,93718.0,93707.0,0.3608]
[1734974727901,0.053422,93711.0,93707.0,0.3608]
[1734974728286,0.053419,93716.0,93707.0,0.3608]
[1734974728501,0.05342,93715.0,93707.0,0.3608]
[1734974728994,0.3608,93710.0,93707.0,0.001]
[1734974729203,0.2133,93717.0,93710.0,0.053422]
[1734974729404,0.004,93716.0,93710.0,0.053422]
[1734974729795,0.001,93715.0,93710.0,0.053422]
[1734974729990,0.001,93715.0,93707.0,0.13169682]
[1734974729991,0.05642,93715.0,93707.0,0.13169682]
[1734974730216,0.3608,93710.0,93697.0,0.053429]
[1734974730505,0.3608,93710.0,93691.0,0.3608]
[1734974730804,0.053431,93696.0,93683.0,0.3608]
[1734974731005,0.053431,93696.0,93684.0,0.053437]
[1734974731202,0.3608,93700.0,93690.0,0.053433]
[1734974731401,0.3608,93700.0,93691.0,0.053433]
[1734974732205,0.053426,93704.0,93691.0,0.053433]
[1734974732406,0.3711548,93710.0,93691.0,0.053433]
[1734974732609,0.053428,93701.0,93691.0,0.053433]
[1734974732809,0.1038,93703.0,93691.0,0.053433]
[1734974733201,0.1038,93703.0,93683.0,0.3608]
[1734974733510,0.053432,93693.0,93685.0,0.053436]
[1734974733705,0.1023,93692.0,93685.0,0.053436]
[1734974734300,0.1023,93692.0,93680.0,0.14197263]
[1734974734602,0.1023,93692.0,93668.0,0.1073]
[1734974734803,0.053437,93684.0,93673.0,0.053443]
[1734974735204,0.053437,93684.0,93674.0,0.053443]
[1734974735410,0.053437,93684.0,93670.0,0.14214957]
[1734974735711,0.053437,93684.0,93677.0,0.053441]
[1734974736402,0.053434,93691.0,93675.0,0.3648]
[1734974736605,0.053434,93691.0,93687.0,0.3608]
[1734974737103,0.1023,93692.0,93687.0,0.414235]
[1734974737903,0.053434,93689.0,93687.0,0.3608]
[1734974738110,0.053434,93689.0,93675.0,0.3618]
[1734974738111,0.053442,93676.0,93675.0,0.001]
[1734974738309,0.3608,93681.0,93668.0,0.3608]
[1734974738604,0.3608,93672.0,93662.0,0.053449]
[1734974739109,0.053448,93666.0,93654.0,0.3608]
[1734974739315,0.053463,93639.0,93637.0,0.3608]
[1734974739498,0.3608,93649.0,93635.0,0.1892534]
[1734974739699,0.053464,93637.0,93635.0,0.1892534]
[1734974740000,0.053464,93637.0,93635.0,0.0268534]
[1734974740314,0.053469,93629.0,93628.0,0.25254881]
[1734974740607,0.053469,93629.0,93610.0,0.38002681]
[1734974740608,0.053474,93621.0,93610.0,0.00152]
[1734974740813,0.053474,93621.0,93610.0,0.053479]
[1734974741107,0.3608,93629.0,93605.0,0.3608]
[1734974741305,0.053471,93625.0,93612.0,0.053478]
[1734974741703,0.053472,93623.0,93612.0,0.053478]
[1734974741898,0.3608,93637.0,93615.0,0.3608]
[1734974741899,0.001,93621.0,93615.0,0.3608]
[1734974742105,0.001,93621.0,93620.0,0.053474]
[1734974742814,0.001,93625.0,93624.0,0.053471]
[1734974743108,0.21388245,93656.0,93652.0,0.053455]
[1734974743299,0.05505537,93656.0,93652.0,0.053455]
[1734974743502,0.00160237,93656.0,93652.0,0.053455]
[1734974743700,0.053455,93654.0,93652.0,0.053455]
[1734974744413,0.00160237,93656.0,93655.0,0.053454]
[1734974745608,0.00160237,93656.0,93655.0,0.055454]
[1734974745804,0.00160237,93656.0,93655.0,0.002]
[1734974746001,0.00160237,93656.0,93648.0,0.415777]
[1734974746207,0.05505537,93656.0,93655.0,0.001]
[1734974746412,0.053462,93640.0,93628.0,0.06415657]
[1734974746609,0.053465,93636.0,93628.0,0.053469]
[1734974746809,0.3608,93630.0,93612.0,0.36232]
[1734974747013,0.053472,93623.0,93614.0,0.06399064]
[1734974747512,0.49249682,93630.0,93614.0,0.01051364]
[1734974747710,0.053473,93621.0,93612.0,0.3608]
[1734974748015,0.053469,93629.0,93614.0,0.053477]
[1734974748211,0.053469,93629.0,93618.0,0.053474]
[1734974748804,0.3608,93630.0,93621.0,0.053473]
[1734974749007,0.3608,93630.0,93622.0,0.053472]
[1734974749209,0.3608,93630.0,93620.0,0.3608]
[1734974749423,0.0999,93635.0,93620.0,0.3608]
[1734974749620,0.053467,93633.0,93625.0,0.05347]
[1734974751731,0.002,93633.0,93620.0,0.3608]
[1734974751928,0.3608,93626.0,93601.0,0.3608]
[1734974752226,0.053482,93606.0,93601.0,0.3608]
[1734974752428,0.3608,93618.0,93600.0,0.1]
[1734974752626,0.4629,93610.0,93600.0,0.1]
[1734974752839,0.3608,93610.0,93600.0,0.1]
[1734974753139,0.3608,93618.0,93600.0,0.4608]
[1734974753436,0.053473,93621.0,93612.0,0.053478]
[1734974754032,0.053474,93619.0,93605.0,0.053482]
[1734974754428,0.053475,93617.0,93606.0,0.053481]
[1734974754825,0.053477,93615.0,93606.0,0.053481]
[1734974755224,0.3608,93613.0,93600.0,0.46336]
[1734974755436,0.053484,93602.0,93600.0,0.101]
[1734974755736,0.053484,93602.0,93600.0,0.1]
[1734974756641,0.053484,93602.0,93600.0,0.101]
[1734974756834,0.1059,93601.0,93600.0,0.101]
[1734974757350,0.1059,93601.0,93600.0,0.1]
[1734974757838,0.1059,93601.0,93600.0,0.101]
[1734974758039,0.3608,93604.0,93600.0,0.101]
[1734974758736,0.053484,93602.0,93600.0,0.101]
[1734974760039,0.053484,93602.0,93600.0,0.1]
[1734974760240,0.053484,93602.0,93600.0,0.101]
[1734974760443,0.3608,93604.0,93602.0,0.053484]
[1734974760638,0.20299298,93620.0,93600.0,0.1]
[1734974760843,0.053484,93602.0,93600.0,0.101]
[1734974761650,0.01062477,93616.0,93605.0,0.053482]
[1734974761842,0.3608,93622.0,93605.0,0.053482]
[1734974762041,0.3608,93622.0,93600.0,0.101]
[1734974762742,0.3608,93634.0,93600.0,0.101]
[1734974762940,0.054476,93616.0,93607.0,0.053481]
[1734974763541,0.053476,93616.0,93607.0,0.053481]
[1734974763849,0.3608,93634.0,93605.0,0.3608]
[1734974764040,0.002,93616.0,93612.0,0.053478]
[1734974764546,0.002,93616.0,93605.0,0.3608]
[1734974764842,0.002,93616.0,93600.0,0.11066484]
[1734974764843,0.053484,93602.0,93600.0,0.1]
[1734974765247,0.05348,93609.0,93600.0,0.1]
[1734974765453,0.003,93616.0,93606.0,0.3608]
[1734974765746,0.003,93616.0,93614.0,0.053477]
[1734974765935,0.002,93616.0,93609.0,0.05348]
[1734974766135,0.002,93616.0,93606.0,0.3608]
[1734974766451,0.002,93616.0,93614.0,0.053477]
[1734974766644,0.00160285,93625.0,93618.0,0.053475]
[1734974767041,0.00160285,93625.0,93614.0,0.3618]
[1734974767347,0.00160285,93625.0,93623.0,0.053472]
[1734974767848,0.053474,93621.0,93614.0,0.001]
[1734974768052,0.00360285,93625.0,93615.0,0.3608]
[1734974768448,0.00560285,93625.0,93615.0,0.3608]
[1734974768647,0.3608,93624.0,93621.0,0.053473]
[1734974768852,0.3608,93624.0,93607.0,0.3608]
[1734974769244,0.3608,93624.0,93622.0,0.053472]
[1734974769843,0.00560285,93625.0,93622.0,0.053472]
[1734974770049,0.00160285,93625.0,93622.0,0.053472]
[1734974770357,0.00160285,93625.0,93623.0,0.053472]
[1734974770654,0.004,93624.0,93623.0,0.053472]
[1734974771046,0.004,93624.0,93623.0,0.414272]
[1734974771447,0.006,93624.0,93623.0,0.414272]
[1734974771742,0.002,93624.0,93623.0,0.414272]
[1734974772154,0.004,93625.0,93623.0,0.42498274]
[1734974772350,0.01036609,93649.0,93624.0,0.1019]
[1734974772549,0.053463,93640.0,93637.0,0.053464]
[1734974772853,0.053463,93640.0,93638.0,0.053463]
[1734974774055,0.062463,93640.0,93638.0,0.054463]
[1734974774252,0.009,93640.0,93638.0,0.054463]
[1734974774454,0.009,93640.0,93639.0,0.3608]
[1734974774755,0.15882708,93663.0,93655.0,0.053454]
[1734974774955,0.15882708,93663.0,93655.0,0.414254]
[1734974775355,0.0983,93680.0,93655.0,0.414254]
[1734974775356,0.15882708,93671.0,93655.0,0.414254]
[1734974775541,0.05345,93662.0,93655.0,0.414254]
[1734974775955,0.053451,93660.0,93655.0,0.414254]
[1734974776156,0.15882708,93671.0,93655.0,0.417254]
[1734974776451,0.3608,93667.0,93655.0,0.003]
[1734974776649,0.05505537,93656.0,93655.0,0.003]
[1734974777754,0.00160237,93656.0,93655.0,0.004]
[1734974778148,0.00160237,93656.0,93655.0,0.002]
[1734974778450,0.00160237,93656.0,93655.0,0.1059]
[1734974778653,0.00260237,93656.0,93655.0,0.1049]
[1734974778855,0.15882708,93695.0,93656.0,0.232]
[1734974779158,0.15882708,93695.0,93694.0,0.053431]
[1734974779365,8e-08,93695.0,93694.0,0.053431]
[1734974779561,0.08282972,93702.0,93701.0,0.053427]
[1734974779863,0.414208,93736.0,93716.0,0.053419]
[1734974779864,0.3608,93736.0,93716.0,0.053419]
[1734974780049,2.5e-07,93737.0,93716.0,1.0216]
[1734974780248,2.5e-07,93737.0,93736.0,0.3608]
[1734974781250,0.05340725,93737.0,93736.0,0.3608]
[1734974781453,0.053407,93737.0,93736.0,0.3618]
[1734974781849,0.053407,93737.0,93736.0,0.2878]
[1734974782753,0.059407,93737.0,93736.0,0.2888]
[1734974783049,0.006,93737.0,93736.0,0.2888]
[1734974784663,0.006,93737.0,93736.0,0.002]
[1734974785158,0.006,93737.0,93736.0,0.001]
[1734974785551,0.00160082,93744.0,93736.0,0.3608]
[1734974785757,0.00160082,93744.0,93743.0,0.053404]
[1734974786356,0.053392,93764.0,93760.0,0.053394]
[1734974786751,0.053392,93763.0,93754.0,0.414197]
[1734974787059,0.3608,93766.0,93754.0,0.414197]
[1734974787364,0.053402,93747.0,93736.0,0.3608]
[1734974787548,0.003,93744.0,93736.0,0.3608]
[1734974788065,0.053402,93746.0,93736.0,0.3608]
[1734974788555,0.053398,93754.0,93742.0,0.053404]
[1734974788763,0.053398,93754.0,93745.0,0.053402]
[1734974789362,0.3608,93758.0,93736.0,0.3608]
[1734974789363,0.053399,93752.0,93736.0,0.3608]
[1734974789558,0.053399,93752.0,93739.0,0.053406]
[1734974789754,0.0534,93750.0,93739.0,0.053406]
[1734974789954,0.3608,93758.0,93736.0,0.3608]
[1734974790153,0.3608,93741.0,93718.0,0.3608]
[1734974790351,0.053415,93724.0,93712.0,0.053421]
[1734974790554,0.13161464,93740.0,93709.0,0.3608]
[1734974790555,0.2118,93740.0,93717.0,0.3608]
[1734974790763,0.3608,93741.0,93740.0,0.053405]
[1734974790963,0.001,93750.0,93749.0,0.0534]
[1734974791662,0.3608,93768.0,93751.0,0.053399]
[1734974791858,0.3608,93768.0,93751.0,0.414199]
[1734974792463,0.01041865,93777.0,93751.0,0.414199]
[1734974792464,0.053391,93765.0,93751.0,0.414199]
[1734974792663,0.053392,93764.0,93751.0,0.414199]
[1734974793264,0.053392,93764.0,93757.0,0.053395]
[1734974793565,0.053392,93764.0,93751.0,0.3608]
[1734974793767,0.053392,93764.0,93760.0,0.053394]
[1734974794264,0.053392,93764.0,93751.0,0.3608]
[1734974794265,0.053394,93760.0,93756.0,0.053396]
[1734974795168,0.005,93764.0,93751.0,0.3608]
[1734974795169,0.001,93764.0,93759.0,0.3608]
[1734974795472,0.002,93764.0,93763.0,0.053392]
[1734974796568,0.001,93764.0,93763.0,0.053392]
[1734974796774,0.053391,93766.0,93763.0,0.053392]
[1734974796965,0.414187,93772.0,93763.0,0.053392]
[1734974797165,0.053383,93779.0,93767.0,0.3608]
[1734974797367,0.3608,93781.0,93771.0,0.053387]
[1734974797870,0.3608,93781.0,93767.0,0.3608]
[1734974797871,0.053384,93777.0,93772.0,0.053387]
[1734974798271,0.053384,93777.0,93767.0,0.3608]
[1734974798567,0.00160033,93783.0,93767.0,0.3608]
[1734974798568,0.001,93781.0,93779.0,0.053383]
[1734974799869,0.3608,93789.0,93775.0,0.3608]
[1734974800375,0.053382,93782.0,93780.0,0.053382]
[1734974800573,0.002,93781.0,93780.0,0.053382]
[1734974800765,0.004,93781.0,93780.0,0.053382]
[1734974801074,0.002,93781.0,93780.0,0.053382]
[1734974801572,0.053378,93788.0,93780.0,0.060382]
[1734974801872,0.053382,93781.0,93780.0,0.007]
[1734974802674,0.414182,93781.0,93780.0,0.007]
[1734974802866,0.414182,93781.0,93780.0,0.005]
[1734974803172,0.414182,93781.0,93780.0,0.001]
[1734974803570,0.414182,93781.0,93767.0,0.01042922]
[1734974803571,0.3608,93781.0,93767.0,0.01042922]
[1734974803773,0.3608,93781.0,93757.0,0.3608]
[1734974803774,0.3608,93772.0,93757.0,0.3608]
[1734974803970,0.3608,93763.0,93749.0,0.01054371]
[1734974804177,0.0534,93750.0,93749.0,0.01054371]
[1734974804677,0.053402,93746.0,93745.0,0.3608]
[1734974804975,0.414202,93746.0,93735.0,0.414208]
[1734974805375,0.414202,93746.0,93720.0,0.13161464]
[1734974805575,0.414202,93746.0,93736.0,0.053407]
[1734974805781,0.414202,93746.0,93737.0,0.053407]
[1734974805968,0.414202,93746.0,93740.0,0.053405]
[1734974806369,0.3608,93746.0,93744.0,0.05500197]
[1734974806573,0.053398,93753.0,93749.0,0.001]
[1734974806872,0.3608,93765.0,93752.0,0.3608]
[1734974807179,0.3608,93765.0,93755.0,0.13161464]
[1734974807474,0.053396,93756.0,93752.0,0.3608]
[1734974807673,0.053397,93755.0,93744.0,0.00159997]
[1734974807877,0.3608,93765.0,93744.0,0.00159997]
[1734974808078,0.053399,93751.0,93744.0,0.00159997]
[1734974808276,0.0534,93750.0,93744.0,0.00159997]
[1734974808985,0.053401,93748.0,93744.0,0.00159997]
[1734974809478,0.056396,93756.0,93747.0,0.053401]
[1734974810274,0.001,93748.0,93747.0,0.053401]
[1734974810478,0.002,93748.0,93747.0,0.053401]
[1734974810676,0.001,93748.0,93747.0,0.053401]
[1734974811076,0.001,93756.0,93747.0,0.053401]
[1734974811269,0.053398,93753.0,93747.0,0.053401]
[1734974811664,0.0534,93750.0,93744.0,0.00159997]
[1734974811880,0.0534,93750.0,93744.0,0.05500297]
[1734974812583,0.001,93748.0,93744.0,0.05500297]
[1734974812771,0.002,93748.0,93744.0,0.05500297]
[1734974812973,0.001,93748.0,93744.0,0.05500297]
[1734974813581,0.0534,93750.0,93744.0,0.05500297]
[1734974814073,0.3608,93757.0,93744.0,0.00159997]
[1734974814578,0.053402,93746.0,93744.0,0.00159997]
[1734974816372,0.3608,93757.0,93744.0,0.00159997]
[1734974816577,0.3608,93757.0,93755.0,0.053396]
[1734974816778,0.3608,93776.0,93753.0,0.3608]
[1734974817083,0.053389,93769.0,93764.0,0.053392]
[1734974817679,0.3608,93776.0,93761.0,0.3608]
[1734974818481,0.053389,93768.0,93761.0,0.3608]
[1734974818782,0.3608,93776.0,93761.0,0.3608]
[1734974818976,0.05339,93768.0,93761.0,0.3608]
[1734974819784,0.1033,93784.0,93779.0,0.053383]
[1734974820079,0.053379,93787.0,93781.0,0.3608]
[1734974820379,0.053375,93793.0,93781.0,0.414182]
[1734974821079,0.00660033,93782.0,93781.0,0.414182]
[1734974822370,0.053368,93805.0,93781.0,0.714182]
[1734974822581,0.053368,93805.0,93804.0,0.053369]
[1734974823170,0.01074022,93813.0,93798.0,0.3608]
[1734974823378,0.3608,93799.0,93781.0,0.37376503]
[1734974823583,0.053378,93789.0,93785.0,0.053379]
[1734974823779,0.053378,93788.0,93785.0,0.053379]
[1734974824285,0.053381,93783.0,93781.0,0.36332]
[1734974824489,0.2069,93798.0,93781.0,0.3618]
[1734974824689,0.2069,93798.0,93787.0,0.053378]
[1734974824690,0.053377,93791.0,93787.0,0.053378]
[1734974824875,0.053373,93797.0,93789.0,0.3608]
[1734974825078,0.004,93805.0,93789.0,0.3608]
[1734974825683,0.053373,93797.0,93792.0,0.053375]
[1734974826196,0.053367,93808.0,93804.0,0.053369]
[1734974826579,0.001,93805.0,93804.0,0.053369]
[1734974828187,0.004,93808.0,93799.0,0.103]
[1734974828482,0.004,93808.0,93800.0,0.053371]
[1734974828682,0.004,93808.0,93806.0,0.053367]
[1734974828887,0.3608,93809.0,93806.0,0.053367]
[1734974829085,0.00159964,93812.0,93807.0,0.053367]
[1734974829281,0.00159964,93812.0,93809.0,0.053366]
[1734974829690,0.00159964,93812.0,93810.0,0.053365]
[1734974830586,0.00159964,93812.0,93811.0,0.3608]
[1734974831390,0.00559964,93812.0,93811.0,0.3608]
[1734974832191,0.00659964,93812.0,93811.0,0.3608]
[1734974832691,0.00659964,93812.0,93811.0,0.37126668]
[1734974832884,0.00159964,93812.0,93811.0,0.37226668]
[1734974833087,0.00359964,93812.0,93811.0,0.37226668]
[1734974833392,0.00359964,93812.0,93811.0,0.37267756]
[1734974834392,0.3608,93840.0,93839.0,0.053349]
[1734974834685,0.053345,93847.0,93834.0,0.3608]
[1734974834891,0.053347,93843.0,93841.0,0.053347]
[1734974835284,0.053347,93843.0,93842.0,0.00141088]
[1734974835889,0.01044019,93855.0,93842.0,0.00141088]
[1734974836085,0.053341,93854.0,93834.0,0.35455688]
[1734974836292,0.053345,93847.0,93834.0,0.35455688]
[1734974836494,0.053345,93847.0,93842.0,0.004]